{"text_format":"3","workbook":"xlsx","n_sheets":1,"sheets":["附件1"],"not_rendered":{"external_links":26,"defined_names":111,"comments":1},"read":"whole","date_system":"1900"}

{"sheet":"附件1","index":0,"n_rows":105,"n_cols":17,"rows_kept":105,"merged":[[1,0,1,12],[1,13,1,16],[2,0,3,0],[2,1,3,1],[2,2,3,2],[2,3,3,3],[2,4,3,4],[2,5,3,5],[2,6,3,6],[2,7,2,10],[2,11,3,11],[2,12,3,12],[2,13,3,13],[2,14,3,14],[2,15,3,15],[2,16,3,16],[104,0,104,2]]}
["附件1："]
["凯里市教育系统2021年招聘辅助教师岗位需求一览表",{"$nulls":12},"筛选附加栏"]
["序号","学校名称","招聘岗位类型","招聘岗位简介（学科）","招聘数","岗位代码","学历学位要求","专业要求",{"$nulls":3},"其它招聘条件","备注","学科","学段","报考学科","辖区"]
[{"$nulls":7},"中专","专科","本科","研究生"]
[1,"凯里市碧波镇中心幼儿园（又诗分园）","专业技术岗位","辅助学前教育教学工作",2,101,"中专及以上学历","学前教育、幼儿教育、幼儿师范、早期教育、学前辅导与保育、幼师","幼儿教育、学前教育、幼儿师范、幼师、儿童教育、学前教育与艺术教育、幼儿艺术师范","学前教育、幼师、幼儿教育、幼儿师范、学前辅导与保育、学前教育与艺术教育、幼儿艺体教育、艺术教育","学前教育学、学前教育","1.具有幼儿园教师资格证书；\n2.中专、专科学历报考者仅限黔东南州户籍（以居民户口簿信息为准）。",null,"学前","学前",{"$f":"O5&N5","v":"学前学前"},"碧波"]
[2,"凯里市第十一幼儿园","专业技术岗位","辅助学前教育教学工作",4,102,"本科及以上学历",null,null,"学前教育、幼师、幼儿教育、幼儿师范、学前辅导与保育、学前教育与艺术教育、幼儿艺体教育、艺术教育","学前教育学、学前教育","具有幼儿园教师资格证书",null,"学前","学前","学前学前","城西"]
[3,"凯里市第五幼儿园","专业技术岗位","辅助学前教育教学工作",10,103,"本科及以上学历",null,null,"学前教育、幼师、幼儿教育、幼儿师范、学前辅导与保育、学前教育与艺术教育、幼儿艺体教育、艺术教育","学前教育学、学前教育","具有幼儿园教师资格证书",null,"学前","学前","学前学前","大十字"]
[4,"凯里市第五幼儿园","专业技术岗位","辅助学前音乐与舞蹈教学工作",3,104,"本科及以上学历",null,null,"音乐与舞蹈学类、音乐表演、音乐学、音乐学、舞蹈学、舞蹈编导","音乐与舞蹈学、舞蹈、舞蹈学、学科教学（音乐）、音乐、音乐学","具有幼儿园教师资格证书",null,"音乐与舞蹈","学前","学前音乐与舞蹈","大十字"]
[5,"凯里市炉山镇中心幼儿园","专业技术岗位","辅助学前教育教学工作",4,105,"专科及以上学历",null,"幼儿教育、学前教育、幼儿师范、幼师、儿童教育、学前教育与艺术教育、幼儿艺术师范","学前教育、幼师、幼儿教育、幼儿师范、学前辅导与保育、学前教育与艺术教育、幼儿艺体教育、艺术教育","学前教育学、学前教育","1.具有幼儿园教师资格证书；\n2.专科学历报考者仅限黔东南州户籍（以居民户口簿信息为准）。",null,"学前","学前","学前学前","炉山"]
[6,"凯里市第二幼儿园","专业技术岗位","辅助学前教育教学工作",2,106,"本科及以上学历",null,null,"学前教育、幼师、幼儿教育、幼儿师范、学前辅导与保育、学前教育与艺术教育、幼儿艺体教育、艺术教育","学前教育学、学前教育","具有幼儿园教师资格证书",null,"学前","学前","学前学前","湾溪"]
[7,"凯里市第六幼儿园","专业技术岗位","辅助学前教育教学工作",6,107,"本科及以上学历",null,null,"学前教育、幼师、幼儿教育、幼儿师范、学前辅导与保育、学前教育与艺术教育、幼儿艺体教育、艺术教育","学前教育学、学前教育","具有幼儿园教师资格证书",null,"学前","学前","学前学前","西门"]
[8,"凯里市第七幼儿园","专业技术岗位","辅助学前教育教学工作",1,108,"本科及以上学历",null,null,"学前教育、幼师、幼儿教育、幼儿师范、学前辅导与保育、学前教育与艺术教育、幼儿艺体教育、艺术教育","学前教育学、学前教育","具有幼儿园教师资格证书",null,"学前","学前","学前学前","西门"]
[9,"凯里市第九幼儿园","专业技术岗位","辅助学前教育教学工作",2,109,"本科及以上学历",null,null,"学前教育、幼师、幼儿教育、幼儿师范、学前辅导与保育、学前教育与艺术教育、幼儿艺体教育、艺术教育","学前教育学、学前教育","具有幼儿园教师资格证书",null,"学前","学前","学前学前","洗马河"]
[10,"凯里市第十六幼儿园","专业技术岗位","辅助学前教育教学工作",1,110,"本科及以上学历",null,null,"学前教育、幼师、幼儿教育、幼儿师范、学前辅导与保育、学前教育与艺术教育、幼儿艺体教育、艺术教育","学前教育学、学前教育","具有幼儿园教师资格证书",null,"学前","学前","学前学前","白果井"]
[11,"凯里市第十七幼儿园","专业技术岗位","辅助学前教育教学工作",4,111,"本科及以上学历",null,null,"学前教育、幼师、幼儿教育、幼儿师范、学前辅导与保育、学前教育与艺术教育、幼儿艺体教育、艺术教育","学前教育学、学前教育","具有幼儿园教师资格证书",null,"学前","学前","学前学前","白午"]
[12,"凯里市第十七幼儿园（清平分园）","专业技术岗位","辅助学前教育教学工作",2,112,"本科及以上学历",null,null,"学前教育、幼师、幼儿教育、幼儿师范、学前辅导与保育、学前教育与艺术教育、幼儿艺体教育、艺术教育","学前教育学、学前教育","具有幼儿园教师资格证书",null,"学前","学前","学前学前","白午"]
[13,"凯里市鸭塘街道中心幼儿园","专业技术岗位","辅助学前教育教学工作",2,113,"本科及以上学历",null,null,"学前教育、幼师、幼儿教育、幼儿师范、学前辅导与保育、学前教育与艺术教育、幼儿艺体教育、艺术教育","学前教育学、学前教育","具有幼儿园教师资格证书",null,"学前","学前","学前学前","鸭塘"]
[14,"凯里市舟溪镇中心幼儿园（里禾分园）","专业技术岗位","辅助学前教育教学工作",1,114,"中专及以上学历","学前教育、幼儿教育、幼儿师范、早期教育、学前辅导与保育、幼师","幼儿教育、学前教育、幼儿师范、幼师、儿童教育、学前教育与艺术教育、幼儿艺术师范","学前教育、幼师、幼儿教育、幼儿师范、学前辅导与保育、学前教育与艺术教育、幼儿艺体教育、艺术教育","学前教育学、学前教育","1.具有幼儿园教师资格证书；\n2.中专、专科学历报考者仅限黔东南州户籍（以居民户口簿信息为准）。",null,"学前","学前","学前学前","舟溪"]
[15,"凯里市柿花小学","专业技术岗位","辅助小学英语教学工作",1,201,"本科及以上学历",null,null,"英语、英语教育、应用英语、商务英语、旅游英语、外贸英语、实用英语、专门用途英语","学科教学（英语）、英语口译、英语语言文学、英语笔译","具有小学及以上英语教师资格证书",null,"英语","小学","小学英语","碧波"]
[16,"凯里市第七小学","专业技术岗位","辅助小学语文教学工作",6,202,"本科及以上学历",null,null,"汉语、汉语言、汉语言文学、汉语言文学教育、中国语言文化、应用语言学、对外汉语、汉语国际教育、语文教育、汉语言文学与文化传播、中国语言文学、初等教育、小学教育","学科教学（语文）、语言学及应用语言学、汉语言文字学","具有小学及以上语文教师资格证书",null,"语文","小学","小学语文","城西"]
[17,"凯里市第七小学","专业技术岗位","辅助小学数学教学工作",5,203,"本科及以上学历",null,null,"数学类、数学、数学教育、应用数学、数学与应用数学、初等教育、小学教育","学科教学（数学）、基础数学、计算数学、概率论与数理统计、应用数学、运筹学与控制论、小学教育","所学专业与专业要求一致，需具有小学及以上教师资格证；具有小学及以上数学教师资格证，专业不限。",null,"数学","小学","小学数学","城西"]
[18,"凯里市第七小学","专业技术岗位","辅助小学英语教学工作",4,204,"本科及以上学历",null,null,"英语、英语教育、应用英语、商务英语、旅游英语、外贸英语、实用英语、专门用途英语","学科教学（英语）、英语口译、英语语言文学、英语笔译","具有小学及以上英语教师资格证书",null,"英语","小学","小学英语","城西"]
[19,"凯里市第七小学","专业技术岗位","辅助小学音乐教学工作",1,205,"本科及以上学历",null,null,"音乐、音乐学、音乐表演、音乐教育、社会音乐","学科教学（音乐）、音乐、音乐学","具有小学及以上音乐教师资格证书",null,"音乐","小学","小学音乐","城西"]
[20,"凯里市第七小学","专业技术岗位","辅助小学体育教学工作",1,206,"本科及以上学历",null,null,"体育学类、体育教育、运动训练、社会体育指导与管理、武术与民族传统体育、运动人体科学、运动康复、休闲体育、体育卫生教育、体育现代教育技术","学科教学（体育）、体育教学、运动训练、竞赛组织、社会体育指导、体育教育训练学、民族传统体育学、体育人文社会学、运动人体科学","具有小学及以上体育或体育与健康教师资格证",null,"体育","小学","小学体育","城西"]
[21,"凯里市第七小学","专业技术岗位","辅助小学美术教学工作",1,207,"本科及以上学历",null,null,"美术教育、绘画、美术学、雕塑、艺术设计学、艺术设计、艺术学、美术学类、美术学、摄影、书法学、中国画、艺术教育","学科教学（美术）、美术学、小学教育","具有小学及以上美术教师资格证书",null,"美术","小学","小学美术","城西"]
[22,"凯里市第七小学","专业技术岗位","辅助小学科学教学工作",1,208,"本科及以上学历",null,null,"天文学类、地理科学类、大气科学类、海洋科学类、生物科学类、地球信息科学与技术、科学教育","天体物理、天体测量与天体力学、、自然地理学、人文地理学、地图学与地理信息系统气象学、大气物理学与大气环境、物理海洋学、海洋化学、海洋生物学、海洋地质、环境科学、科学与技术教育、植物学、动物学、生理学、水生生物学、微生物学、神经生物学、遗传学、发育生物学、细胞生物学、生物化学与分子生物学、生物物理学、生态学","所学专业与专业要求一致，需具有小学及以上教师资格证；具有小学及以上科学教师资格证，专业不限。",null,"科学","小学",{"$f":"O26&N26","v":"小学科学"},"城西"]
[23,"凯里市第十四小学","专业技术岗位","辅助小学数学教学工作",2,209,"本科及以上学历",null,null,"数学类、数学、数学教育、应用数学、数学与应用数学、初等教育、小学教育","学科教学（数学）、基础数学、计算数学、概率论与数理统计、应用数学、运筹学与控制论、小学教育","所学专业与专业要求一致，需具有小学及以上教师资格证；具有小学及以上数学教师资格证，专业不限。",null,"数学","小学","小学数学","城西"]
[24,"凯里市第十四小学","专业技术岗位","辅助小学体育教学工作",1,210,"本科及以上学历",null,null,"体育学类、体育教育、运动训练、社会体育指导与管理、武术与民族传统体育、运动人体科学、运动康复、休闲体育、体育卫生教育、体育现代教育技术","学科教学（体育）、体育教学、运动训练、竞赛组织、社会体育指导、体育教育训练学、民族传统体育学、体育人文社会学、运动人体科学","具有小学及以上体育或体育与健康教师资格证",null,"体育","小学","小学体育","城西"]
[25,"凯里市第四小学","专业技术岗位","辅助小学语文教学工作",5,211,"本科及以上学历",null,null,"汉语、汉语言、汉语言文学、汉语言文学教育、中国语言文化、应用语言学、对外汉语、汉语国际教育、语文教育、汉语言文学与文化传播、中国语言文学、初等教育、小学教育","学科教学（语文）、语言学及应用语言学、汉语言文字学","具有小学及以上语文教师资格证书",null,"语文","小学","小学语文","大十字"]
[26,"凯里市第四小学","专业技术岗位","辅助小学数学教学工作",6,212,"本科及以上学历",null,null,"数学类、数学、数学教育、应用数学、数学与应用数学、初等教育、小学教育","学科教学（数学）、基础数学、计算数学、概率论与数理统计、应用数学、运筹学与控制论、小学教育","所学专业与专业要求一致，需具有小学及以上教师资格证；具有小学及以上数学教师资格证，专业不限。",null,"数学","小学","小学数学","大十字"]
[27,"凯里市第四小学","专业技术岗位","辅助小学英语教学工作",5,213,"本科及以上学历",null,null,"英语、英语教育、应用英语、商务英语、旅游英语、外贸英语、实用英语、专门用途英语","学科教学（英语）、英语口译、英语语言文学、英语笔译","具有小学及以上英语教师资格证书",null,"英语","小学","小学英语","大十字"]
[28,"凯里市第四小学","专业技术岗位","辅助小学音乐教学工作",2,214,"本科及以上学历",null,null,"音乐、音乐学、音乐表演、音乐教育、社会音乐","学科教学（音乐）、音乐、音乐学","具有小学及以上音乐教师资格证书",null,"音乐","小学","小学音乐","大十字"]
[29,"凯里市第四小学","专业技术岗位","辅助小学信息技术教学工作",2,215,"本科及以上学历",null,null,"计算机及相关专业","计算机系统结构、计算机应用技术、计算机软件与理论","具有小学及以上信息技术教师资格证书",null,"信息","小学","小学信息","大十字"]
[30,"凯里市第十三小学","专业技术岗位","辅助小学语文教学工作",1,216,"本科及以上学历",null,null,"汉语、汉语言、汉语言文学、汉语言文学教育、中国语言文化、应用语言学、对外汉语、汉语国际教育、语文教育、汉语言文学与文化传播、中国语言文学、初等教育、小学教育","学科教学（语文）、语言学及应用语言学、汉语言文字学","具有小学及以上语文教师资格证书",null,"语文","小学","小学语文","大十字"]
[31,"凯里市第十三小学","专业技术岗位","辅助小学舞蹈教学工作",1,217,"本科及以上学历",null,null,"音乐与舞蹈学类、舞蹈、舞蹈表演与教育、舞蹈与健身技术、艺术教育","音乐与舞蹈学、舞蹈、舞蹈学","所学专业与专业要求一致，需具有小学及以上教师资格证；具有小学及以上数学教师资格证，专业不限。",null,"舞蹈","小学","小学舞蹈","大十字"]
[32,"凯里市第十三小学","专业技术岗位","辅助小学英语教学工作",1,218,"本科及以上学历",null,null,"英语、英语教育、应用英语、商务英语、旅游英语、外贸英语、实用英语、专门用途英语","学科教学（英语）、英语口译、英语语言文学、英语笔译","具有小学及以上英语教师资格证书",null,"英语","小学","小学英语","大十字"]
[33,"凯里市薅支坪小学","专业技术岗位","辅助小学语文教学工作",1,219,"本科及以上学历",null,null,"汉语、汉语言、汉语言文学、汉语言文学教育、中国语言文化、应用语言学、对外汉语、汉语国际教育、语文教育、汉语言文学与文化传播、中国语言文学、初等教育、小学教育","学科教学（语文）、语言学及应用语言学、汉语言文字学","具有小学及以上语文教师资格证书",null,"语文","小学","小学语文","开怀"]
[34,"凯里市棉席小学","专业技术岗位","辅助小学语文教学工作",1,220,"本科及以上学历",null,null,"汉语、汉语言、汉语言文学、汉语言文学教育、中国语言文化、应用语言学、对外汉语、汉语国际教育、语文教育、汉语言文学与文化传播、中国语言文学、初等教育、小学教育","学科教学（语文）、语言学及应用语言学、汉语言文字学","具有小学及以上语文教师资格证书",null,"语文","小学","小学语文","开怀"]
[35,"凯里市凯棠小学","专业技术岗位","辅助小学英语教学工作",1,221,"本科及以上学历",null,null,"英语、英语教育、应用英语、商务英语、旅游英语、外贸英语、实用英语、专门用途英语","学科教学（英语）、英语口译、英语语言文学、英语笔译","具有小学及以上英语教师资格证书",null,"英语","小学","小学英语","凯棠"]
[36,"凯里市炉山小学","专业技术岗位","辅助小学语文教学工作",2,222,"本科及以上学历",null,null,"汉语、汉语言、汉语言文学、汉语言文学教育、中国语言文化、应用语言学、对外汉语、汉语国际教育、语文教育、汉语言文学与文化传播、中国语言文学、初等教育、小学教育","学科教学（语文）、语言学及应用语言学、汉语言文字学","具有小学及以上语文教师资格证书",null,"语文","小学","小学语文","炉山"]
[37,"凯里市炉山小学","专业技术岗位","辅助小学数学教学工作",1,223,"本科及以上学历",null,null,"数学类、数学、数学教育、应用数学、数学与应用数学、初等教育、小学教育","学科教学（数学）、基础数学、计算数学、概率论与数理统计、应用数学、运筹学与控制论、小学教育","所学专业与专业要求一致，需具有小学及以上教师资格证；具有小学及以上数学教师资格证，专业不限。",null,"数学","小学","小学数学","炉山"]
[38,"凯里市炉山小学","专业技术岗位","辅助小学英语教学工作",1,224,"本科及以上学历",null,null,"英语、英语教育、应用英语、商务英语、旅游英语、外贸英语、实用英语、专门用途英语","学科教学（英语）、英语口译、英语语言文学、英语笔译","具有小学及以上英语教师资格证书",null,"英语","小学","小学英语","炉山"]
[39,"凯里市炉山第二小学","专业技术岗位","辅助小学语文教学工作",1,225,"本科及以上学历",null,null,"汉语、汉语言、汉语言文学、汉语言文学教育、中国语言文化、应用语言学、对外汉语、汉语国际教育、语文教育、汉语言文学与文化传播、中国语言文学、初等教育、小学教育","学科教学（语文）、语言学及应用语言学、汉语言文字学","具有小学及以上语文教师资格证书",null,"语文","小学","小学语文","炉山"]
[40,"凯里市炉山第二小学","专业技术岗位","辅助小学数学教学工作",1,226,"本科及以上学历",null,null,"数学类、数学、数学教育、应用数学、数学与应用数学、初等教育、小学教育","学科教学（数学）、基础数学、计算数学、概率论与数理统计、应用数学、运筹学与控制论、小学教育","所学专业与专业要求一致，需具有小学及以上教师资格证；具有小学及以上数学教师资格证，专业不限。",null,"数学","小学","小学数学","炉山"]
[41,"凯里市炉山第二小学","专业技术岗位","辅助小学英语教学工作",1,227,"本科及以上学历",null,null,"英语、英语教育、应用英语、商务英语、旅游英语、外贸英语、实用英语、专门用途英语","学科教学（英语）、英语口译、英语语言文学、英语笔译","具有小学及以上英语教师资格证书",null,"英语","小学","小学英语","炉山"]
[42,"凯里市炉山第二小学","专业技术岗位","辅助小学体育教学工作",1,228,"本科及以上学历",null,null,"体育学类、体育教育、运动训练、社会体育指导与管理、武术与民族传统体育、运动人体科学、运动康复、休闲体育、体育卫生教育、体育现代教育技术","学科教学（体育）、体育教学、运动训练、竞赛组织、社会体育指导、体育教育训练学、民族传统体育学、体育人文社会学、运动人体科学","具有小学及以上体育或体育与健康教师资格证",null,"体育","小学","小学体育","炉山"]
[43,"凯里市旁海小学","专业技术岗位","辅助小学美术教学工作",1,229,"本科及以上学历",null,null,"美术教育、绘画、美术学、雕塑、艺术设计学、艺术设计、艺术学、美术学类、美术学、摄影、书法学、中国画、艺术教育","学科教学（美术）、美术学、小学教育","具有小学及以上美术教师资格证书",null,"美术","小学","小学美术","旁海"]
[44,"凯里市里仁小学","专业技术岗位","辅助小学英语教学工作",1,230,"本科及以上学历",null,null,"英语、英语教育、应用英语、商务英语、旅游英语、外贸英语、实用英语、专门用途英语","学科教学（英语）、英语口译、英语语言文学、英语笔译","具有小学及以上英语教师资格证书",null,"英语","小学","小学英语","湾水"]
[45,"凯里市里仁小学","专业技术岗位","辅助小学音乐教学工作",1,231,"本科及以上学历",null,null,"音乐、音乐学、音乐表演、音乐教育、社会音乐","学科教学（音乐）、音乐、音乐学","具有小学及以上音乐教师资格证书",null,"音乐","小学","小学音乐","湾水"]
[46,"凯里市岩寨小学","专业技术岗位","辅助小学语文教学工作",1,232,"本科及以上学历",null,null,"汉语、汉语言、汉语言文学、汉语言文学教育、中国语言文化、应用语言学、对外汉语、汉语国际教育、语文教育、汉语言文学与文化传播、中国语言文学、初等教育、小学教育","学科教学（语文）、语言学及应用语言学、汉语言文字学","具有小学及以上语文教师资格证书",null,"语文","小学","小学语文","湾水"]
[47,"凯里市第十小学","专业技术岗位","辅助小学语文教学工作",1,233,"本科及以上学历",null,null,"汉语、汉语言、汉语言文学、汉语言文学教育、中国语言文化、应用语言学、对外汉语、汉语国际教育、语文教育、汉语言文学与文化传播、中国语言文学、初等教育、小学教育","学科教学（语文）、语言学及应用语言学、汉语言文字学","具有小学及以上语文教师资格证书",null,"语文","小学","小学语文","湾溪"]
[48,"凯里市第十小学","专业技术岗位","辅助小学数学教学工作",1,234,"本科及以上学历",null,null,"数学类、数学、数学教育、应用数学、数学与应用数学、初等教育、小学教育","学科教学（数学）、基础数学、计算数学、概率论与数理统计、应用数学、运筹学与控制论、小学教育","所学专业与专业要求一致，需具有小学及以上教师资格证；具有小学及以上数学教师资格证，专业不限。",null,"数学","小学","小学数学","湾溪"]
[49,"凯里市第十小学","专业技术岗位","辅助小学英语教学工作",1,235,"本科及以上学历",null,null,"英语、英语教育、应用英语、商务英语、旅游英语、外贸英语、实用英语、专门用途英语","学科教学（英语）、英语口译、英语语言文学、英语笔译","具有小学及以上英语教师资格证书",null,"英语","小学","小学英语","湾溪"]
[50,"凯里市第八小学","专业技术岗位","辅助小学语文教学工作",4,236,"本科及以上学历",null,null,"汉语、汉语言、汉语言文学、汉语言文学教育、中国语言文化、应用语言学、对外汉语、汉语国际教育、语文教育、汉语言文学与文化传播、中国语言文学、初等教育、小学教育","学科教学（语文）、语言学及应用语言学、汉语言文字学","具有小学及以上语文教师资格证书",null,"语文","小学","小学语文","洗马河"]
[51,"凯里市第八小学","专业技术岗位","辅助小学数学教学工作",6,237,"本科及以上学历",null,null,"数学类、数学、数学教育、应用数学、数学与应用数学、初等教育、小学教育","学科教学（数学）、基础数学、计算数学、概率论与数理统计、应用数学、运筹学与控制论、小学教育","所学专业与专业要求一致，需具有小学及以上教师资格证；具有小学及以上数学教师资格证，专业不限。",null,"数学","小学","小学数学","洗马河"]
[52,"凯里市第八小学","专业技术岗位","辅助小学音乐教学工作",2,238,"本科及以上学历",null,null,"音乐、音乐学、音乐表演、音乐教育、社会音乐","学科教学（音乐）、音乐、音乐学","具有小学及以上音乐教师资格证书",null,"音乐","小学",{"$f":"O56&N56","v":"小学音乐"},"洗马河"]
[53,"凯里市第八小学","专业技术岗位","辅助小学体育教学工作",1,239,"本科及以上学历",null,null,"体育学类、体育教育、运动训练、社会体育指导与管理、武术与民族传统体育、运动人体科学、运动康复、休闲体育、体育卫生教育、体育现代教育技术","学科教学（体育）、体育教学、运动训练、竞赛组织、社会体育指导、体育教育训练学、民族传统体育学、体育人文社会学、运动人体科学","具有小学及以上体育或体育与健康教师资格证",null,"体育","小学","小学体育","洗马河"]
[54,"凯里市第八小学","专业技术岗位","辅助小学美术教学工作",2,240,"本科及以上学历",null,null,"美术教育、绘画、美术学、雕塑、艺术设计学、艺术设计、艺术学、美术学类、美术学、摄影、书法学、中国画、艺术教育","学科教学（美术）、美术学、小学教育","具有小学及以上美术教师资格证书",null,"美术","小学","小学美术","洗马河"]
[55,"凯里市第八小学","专业技术岗位","辅助小学科学教学工作",2,241,"本科及以上学历",null,null,"天文学类、地理科学类、大气科学类、海洋科学类、生物科学类、地球信息科学与技术、科学教育","天体物理、天体测量与天体力学、、自然地理学、人文地理学、地图学与地理信息系统气象学、大气物理学与大气环境、物理海洋学、海洋化学、海洋生物学、海洋地质、环境科学、科学与技术教育、植物学、动物学、生理学、水生生物学、微生物学、神经生物学、遗传学、发育生物学、细胞生物学、生物化学与分子生物学、生物物理学、生态学","所学专业与专业要求一致，需具有小学及以上教师资格证；具有小学及以上科学教师资格证，专业不限。",null,"科学","小学","小学科学","洗马河"]
[56,"凯里市第九小学","专业技术岗位","辅助小学语文教学工作",6,242,"本科及以上学历",null,null,"汉语、汉语言、汉语言文学、汉语言文学教育、中国语言文化、应用语言学、对外汉语、汉语国际教育、语文教育、汉语言文学与文化传播、中国语言文学、初等教育、小学教育","学科教学（语文）、语言学及应用语言学、汉语言文字学","具有小学及以上语文教师资格证书",null,"语文","小学","小学语文","洗马河"]
[57,"凯里市第九小学","专业技术岗位","辅助小学英语教学工作",1,243,"本科及以上学历",null,null,"英语、英语教育、应用英语、商务英语、旅游英语、外贸英语、实用英语、专门用途英语","学科教学（英语）、英语口译、英语语言文学、英语笔译","具有小学及以上英语教师资格证书",null,"英语","小学","小学英语","洗马河"]
[58,"凯里市第十七小学","专业技术岗位","辅助小学数学教学工作",1,244,"本科及以上学历",null,null,"数学类、数学、数学教育、应用数学、数学与应用数学、初等教育、小学教育","学科教学（数学）、基础数学、计算数学、概率论与数理统计、应用数学、运筹学与控制论、小学教育","所学专业与专业要求一致，需具有小学及以上教师资格证；具有小学及以上数学教师资格证，专业不限。",null,"数学","小学","小学数学","洗马河"]
[59,"凯里市第二十五小学","专业技术岗位","辅助小学语文教学工作",1,245,"本科及以上学历",null,null,"汉语、汉语言、汉语言文学、汉语言文学教育、中国语言文化、应用语言学、对外汉语、汉语国际教育、语文教育、汉语言文学与文化传播、中国语言文学、初等教育、小学教育","学科教学（语文）、语言学及应用语言学、汉语言文字学","具有小学及以上语文教师资格证书",null,"语文","小学","小学语文","白果井"]
[60,"凯里市第二十五小学","专业技术岗位","辅助小学数学教学工作",2,246,"本科及以上学历",null,null,"数学类、数学、数学教育、应用数学、数学与应用数学、初等教育、小学教育","学科教学（数学）、基础数学、计算数学、概率论与数理统计、应用数学、运筹学与控制论、小学教育","所学专业与专业要求一致，需具有小学及以上教师资格证；具有小学及以上数学教师资格证，专业不限。",null,"数学","小学","小学数学","白果井"]
[61,"凯里市第二十五小学","专业技术岗位","辅助小学英语教学工作",1,247,"本科及以上学历",null,null,"英语、英语教育、应用英语、商务英语、旅游英语、外贸英语、实用英语、专门用途英语","学科教学（英语）、英语口译、英语语言文学、英语笔译","具有小学及以上英语教师资格证书",null,"英语","小学","小学英语","白果井"]
[62,"凯里市下司镇马场小学","专业技术岗位","辅助小学语文教学工作",1,248,"本科及以上学历",null,null,"汉语、汉语言、汉语言文学、汉语言文学教育、中国语言文化、应用语言学、对外汉语、汉语国际教育、语文教育、汉语言文学与文化传播、中国语言文学、初等教育、小学教育","学科教学（语文）、语言学及应用语言学、汉语言文字学","具有小学及以上语文教师资格证书",null,"语文","小学","小学语文","下司"]
[63,"凯里市下司镇马场小学","专业技术岗位","辅助小学数学教学工作",1,249,"本科及以上学历",null,null,"数学类、数学、数学教育、应用数学、数学与应用数学、初等教育、小学教育","学科教学（数学）、基础数学、计算数学、概率论与数理统计、应用数学、运筹学与控制论、小学教育","所学专业与专业要求一致，需具有小学及以上教师资格证；具有小学及以上数学教师资格证，专业不限。",null,"数学","小学","小学数学","下司"]
[64,"凯里市白午小学","专业技术岗位","辅助小学语文教学工作",1,250,"本科及以上学历",null,null,"汉语、汉语言、汉语言文学、汉语言文学教育、中国语言文化、应用语言学、对外汉语、汉语国际教育、语文教育、汉语言文学与文化传播、中国语言文学、初等教育、小学教育","学科教学（语文）、语言学及应用语言学、汉语言文字学","具有小学及以上语文教师资格证书",null,"语文","小学","小学语文","下司"]
[65,"凯里市白午小学","专业技术岗位","辅助小学数学教学工作",1,251,"本科及以上学历",null,null,"数学类、数学、数学教育、应用数学、数学与应用数学、初等教育、小学教育","学科教学（数学）、基础数学、计算数学、概率论与数理统计、应用数学、运筹学与控制论、小学教育","所学专业与专业要求一致，需具有小学及以上教师资格证；具有小学及以上数学教师资格证，专业不限。",null,"数学","小学","小学数学","下司"]
[66,"凯里市白午小学","专业技术岗位","辅助小学英语教学工作",1,252,"本科及以上学历",null,null,"英语、英语教育、应用英语、商务英语、旅游英语、外贸英语、实用英语、专门用途英语","学科教学（英语）、英语口译、英语语言文学、英语笔译","具有小学及以上英语教师资格证书",null,"英语","小学","小学英语","下司"]
[67,"凯里市白午小学","专业技术岗位","辅助小学科学教学工作",1,253,"本科及以上学历",null,null,"天文学类、地理科学类、大气科学类、海洋科学类、生物科学类、地球信息科学与技术、科学教育","天体物理、天体测量与天体力学、、自然地理学、人文地理学、地图学与地理信息系统气象学、大气物理学与大气环境、物理海洋学、海洋化学、海洋生物学、海洋地质、环境科学、科学与技术教育、植物学、动物学、生理学、水生生物学、微生物学、神经生物学、遗传学、发育生物学、细胞生物学、生物化学与分子生物学、生物物理学、生态学","所学专业与专业要求一致，需具有小学及以上教师资格证；具有小学及以上科学教师资格证，专业不限。",null,"科学","小学","小学科学","下司"]
[68,"凯里市下司小学","专业技术岗位","辅助小学数学教学工作",1,254,"本科及以上学历",null,null,"数学类、数学、数学教育、应用数学、数学与应用数学、初等教育、小学教育","学科教学（数学）、基础数学、计算数学、概率论与数理统计、应用数学、运筹学与控制论、小学教育","所学专业与专业要求一致，需具有小学及以上教师资格证；具有小学及以上数学教师资格证，专业不限。",null,"数学","小学","小学数学","下司"]
[69,"凯里市翁义小学","专业技术岗位","辅助小学语文教学工作",4,255,"本科及以上学历",null,null,"汉语、汉语言、汉语言文学、汉语言文学教育、中国语言文化、应用语言学、对外汉语、汉语国际教育、语文教育、汉语言文学与文化传播、中国语言文学、初等教育、小学教育","学科教学（语文）、语言学及应用语言学、汉语言文字学","具有小学及以上语文教师资格证书",null,"语文","小学","小学语文","鸭塘"]
[70,"凯里市翁义小学","专业技术岗位","辅助小学数学教学工作",6,256,"本科及以上学历",null,null,"数学类、数学、数学教育、应用数学、数学与应用数学、初等教育、小学教育","学科教学（数学）、基础数学、计算数学、概率论与数理统计、应用数学、运筹学与控制论、小学教育","所学专业与专业要求一致，需具有小学及以上教师资格证；具有小学及以上数学教师资格证，专业不限。",null,"数学","小学","小学数学","鸭塘"]
[71,"凯里市翁义小学","专业技术岗位","辅助小学体育教学工作",1,257,"本科及以上学历",null,null,"体育学类、体育教育、运动训练、社会体育指导与管理、武术与民族传统体育、运动人体科学、运动康复、休闲体育、体育卫生教育、体育现代教育技术","学科教学（体育）、体育教学、运动训练、竞赛组织、社会体育指导、体育教育训练学、民族传统体育学、体育人文社会学、运动人体科学","具有小学及以上体育或体育与健康教师资格证",null,"体育","小学","小学体育","鸭塘"]
[72,"凯里市翁义小学","专业技术岗位","辅助小学科学教学工作",1,258,"本科及以上学历",null,null,"天文学类、地理科学类、大气科学类、海洋科学类、生物科学类、地球信息科学与技术、科学教育","天体物理、天体测量与天体力学、、自然地理学、人文地理学、地图学与地理信息系统气象学、大气物理学与大气环境、物理海洋学、海洋化学、海洋生物学、海洋地质、环境科学、科学与技术教育、植物学、动物学、生理学、水生生物学、微生物学、神经生物学、遗传学、发育生物学、细胞生物学、生物化学与分子生物学、生物物理学、生态学","所学专业与专业要求一致，需具有小学及以上教师资格证；具有小学及以上科学教师资格证，专业不限。",null,"科学","小学","小学科学","鸭塘"]
[73,"凯里市翁义小学中昊校区","专业技术岗位","辅助小学语文教学工作",2,259,"本科及以上学历",null,null,"汉语、汉语言、汉语言文学、汉语言文学教育、中国语言文化、应用语言学、对外汉语、汉语国际教育、语文教育、汉语言文学与文化传播、中国语言文学、初等教育、小学教育","学科教学（语文）、语言学及应用语言学、汉语言文字学","具有小学及以上语文教师资格证书",null,"语文","小学","小学语文","鸭塘"]
[74,"凯里市翁义小学中昊校区","专业技术岗位","辅助小学数学教学工作",2,260,"本科及以上学历",null,null,"数学类、数学、数学教育、应用数学、数学与应用数学、初等教育、小学教育","学科教学（数学）、基础数学、计算数学、概率论与数理统计、应用数学、运筹学与控制论、小学教育","所学专业与专业要求一致，需具有小学及以上教师资格证；具有小学及以上数学教师资格证，专业不限。",null,"数学","小学","小学数学","鸭塘"]
[75,"凯里市翁义小学中昊校区","专业技术岗位","辅助小学英语教学工作",2,261,"本科及以上学历",null,null,"英语、英语教育、应用英语、商务英语、旅游英语、外贸英语、实用英语、专门用途英语","学科教学（英语）、英语口译、英语语言文学、英语笔译","具有小学及以上英语教师资格证书",null,"英语","小学","小学英语","鸭塘"]
[76,"凯里市马坡井小学","专业技术岗位","辅助小学语文教学工作",1,262,"本科及以上学历",null,null,"汉语、汉语言、汉语言文学、汉语言文学教育、中国语言文化、应用语言学、对外汉语、汉语国际教育、语文教育、汉语言文学与文化传播、中国语言文学、初等教育、小学教育","学科教学（语文）、语言学及应用语言学、汉语言文字学","具有小学及以上语文教师资格证书",null,"语文","小学","小学语文","鸭塘"]
[77,"凯里市马坡井小学","专业技术岗位","辅助小学数学教学工作",1,263,"本科及以上学历",null,null,"数学类、数学、数学教育、应用数学、数学与应用数学、初等教育、小学教育","学科教学（数学）、基础数学、计算数学、概率论与数理统计、应用数学、运筹学与控制论、小学教育","所学专业与专业要求一致，需具有小学及以上教师资格证；具有小学及以上数学教师资格证，专业不限。",null,"数学","小学","小学数学","鸭塘"]
[78,"凯里市马坡井小学","专业技术岗位","辅助小学英语教学工作",1,264,"本科及以上学历",null,null,"英语、英语教育、应用英语、商务英语、旅游英语、外贸英语、实用英语、专门用途英语","学科教学（英语）、英语口译、英语语言文学、英语笔译","具有小学及以上英语教师资格证书",null,"英语","小学","小学英语","鸭塘"]
[79,"凯里市第四中学","专业技术岗位","辅助初中数学教学工作",1,301,"本科及以上学历、学位",null,null,"数学类、数学、数学教育、应用数学、数学与应用数学、初等教育","学科教学（数学）、基础数学、计算数学、概率论与数理统计、应用数学、运筹学与控制论","具有初中及以上数学教师资格证书",null,"数学","初中","初中数学","城西"]
[80,"凯里市第四中学","专业技术岗位","辅助初中地理教学工作",1,302,"本科及以上学历、学位",null,null,"地理科学类、地理科学、地理学、地理学教育、地理教育、自然地理与资源环境、地理信息科学、人文地理与城乡规划","地理学类、自然地理学、人文地理学、地图学与地理信息系统、学科教学（地理）","具有初中及以上地理教师资格证书",null,"地理","初中","初中地理","城西"]
[81,"凯里市第四中学","专业技术岗位","辅助初中化学教学工作",1,303,"本科及以上学历、学位",null,null,"化学类、化学、应用化学、化学生物学、分子科学与工程、化学教育","无机化学、分析化学、有机化学、物理化学、高分子化学与物理、学科教学（化学）、化学工程、化学工艺、生物化工、应用化学、工业催化","具有初中及以上化学教师资格证书",null,"化学","初中","初中化学","城西"]
[82,"凯里市第十六中学","专业技术岗位","辅助初中语文教学工作",1,304,"本科及以上学历、学位",null,null,"汉语、汉语言、汉语言文学、汉语言文学教育、中国语言文化、应用语言学、对外汉语、汉语国际教育、语文教育、汉语言文学与文化传播、中国语言文学、初等教育","学科教学（语文）、语言学及应用语言学、汉语言文字学","具有初中及以上语文教师资格证书",null,"语文","初中","初中语文","大十字"]
[83,"凯里市第十六中学","专业技术岗位","辅助初中数学教学工作",1,305,"本科及以上学历、学位",null,null,"数学类、数学、数学教育、应用数学、数学与应用数学、初等教育","学科教学（数学）、基础数学、计算数学、概率论与数理统计、应用数学、运筹学与控制论","具有初中及以上数学教师资格证书",null,"数学","初中","初中数学","大十字"]
[84,"凯里市凯棠民族希望中学","专业技术岗位","辅助初中物理教学工作",1,306,"本科及以上学历、学位",null,null,"物理学类、材料物理、工程物理","学科教学（物理）、理论物理、粒子物理与原子核物理、原子与分子物理、等离子体物理、凝聚态物理、声学、光学、无线电物理","具有初中及以上物理教师资格证书",null,"物理","初中",{"$f":"O88&N88","v":"初中物理"},"凯棠"]
[85,"凯里市第十八中学","专业技术岗位","辅助初中语文教学工作",1,307,"本科及以上学历、学位",null,null,"汉语、汉语言、汉语言文学、汉语言文学教育、中国语言文化、应用语言学、对外汉语、汉语国际教育、语文教育、汉语言文学与文化传播、中国语言文学、初等教育","学科教学（语文）、语言学及应用语言学、汉语言文字学","具有初中及以上语文教师资格证书",null,"语文","初中","初中语文","白果井"]
[86,"凯里市第十八中学","专业技术岗位","辅助初中数学教学工作",1,308,"本科及以上学历、学位",null,null,"数学类、数学、数学教育、应用数学、数学与应用数学、初等教育","学科教学（数学）、基础数学、计算数学、概率论与数理统计、应用数学、运筹学与控制论","具有初中及以上数学教师资格证书",null,"数学","初中","初中数学","白果井"]
[87,"凯里市第十八中学","专业技术岗位","辅助初中英语教学工作",1,309,"本科及以上学历、学位",null,null,"英语、英语教育、应用英语、商务英语、旅游英语、外贸英语、实用英语、专门用途英语","学科教学（英语）、英语口译、英语语言文学、英语笔译","具有初中及以上英语教师资格证书",null,"英语","初中","初中英语","白果井"]
[88,"凯里市第十八中学","专业技术岗位","辅助初中历史教学工作",1,310,"本科及以上学历、学位",null,null,"历史学类、历史学、世界史、外国语言与外国历史、历史学教育","学科教学（历史）、史学理论及史学史、考古学及博物馆学、历史地理学、历史文献学、专门史、中国古代史、中国近现代史、世界史","具有初中及以上历史教师资格证书",null,"历史","初中","初中历史","白果井"]
[89,"凯里市第十八中学","专业技术岗位","辅助初中地理教学工作",1,311,"本科及以上学历、学位",null,null,"地理科学类、地理科学、地理学、地理学教育、地理教育、自然地理与资源环境、地理信息科学、人文地理与城乡规划","地理学类、自然地理学、人文地理学、地图学与地理信息系统、学科教学（地理）","具有初中及以上地理教师资格证书",null,"地理","初中","初中地理","白果井"]
[90,"凯里市第十八中学","专业技术岗位","辅助初中物理教学工作",1,312,"本科及以上学历、学位",null,null,"物理学类、材料物理、工程物理","学科教学（物理）、理论物理、粒子物理与原子核物理、原子与分子物理、等离子体物理、凝聚态物理、声学、光学、无线电物理","具有初中及以上物理教师资格证书",null,"物理","初中","初中物理","白果井"]
[91,"凯里市舟溪逸夫中学","专业技术岗位","辅助初中语文教学工作",1,313,"本科及以上学历、学位",null,null,"汉语、汉语言、汉语言文学、汉语言文学教育、中国语言文化、应用语言学、对外汉语、汉语国际教育、语文教育、汉语言文学与文化传播、中国语言文学、初等教育","学科教学（语文）、语言学及应用语言学、汉语言文字学","具有初中及以上语文教师资格证书",null,"语文","初中","初中语文","舟溪"]
[92,"凯里市舟溪逸夫中学","专业技术岗位","辅助初中数学教学工作",1,314,"本科及以上学历、学位",null,null,"数学类、数学、数学教育、应用数学、数学与应用数学、初等教育","学科教学（数学）、基础数学、计算数学、概率论与数理统计、应用数学、运筹学与控制论","具有初中及以上数学教师资格证书",null,"数学","初中","初中数学","舟溪"]
[93,"凯里市舟溪逸夫中学","专业技术岗位","辅助初中英语教学工作",1,315,"本科及以上学历、学位",null,null,"英语、英语教育、应用英语、商务英语、旅游英语、外贸英语、实用英语、专门用途英语","学科教学（英语）、英语口译、英语语言文学、英语笔译","具有初中及以上英语教师资格证书",null,"英语","初中","初中英语","舟溪"]
[94,"凯里市第三中学","专业技术岗位","辅助高中物理教学工作",1,401,"本科及以上学历、学位",null,null,"物理学类、材料物理、工程物理","学科教学（物理）、理论物理、粒子物理与原子核物理、原子与分子物理、等离子体物理、凝聚态物理、声学、光学、无线电物理","具有高中及以上物理教师资格证书",null,"物理","高中","高中物理","市直属"]
[95,"黔东南振华民族高级中学","专业技术岗位","辅助高中数学教学工作",4,402,"本科及以上学历、学位",null,null,"数学类、数学、数学教育、应用数学、数学与应用数学","学科教学（数学）、基础数学、计算数学、概率论与数理统计、应用数学、运筹学与控制论","具有高中及以上数学教师资格证书",null,"数学","高中","高中数学","市直属"]
[96,"黔东南振华民族高级中学","专业技术岗位","辅助高中历史教学工作",2,403,"本科及以上学历、学位",null,null,"历史学类、历史学、世界史、外国语言与外国历史、历史学教育","学科教学（历史）、史学理论及史学史、考古学及博物馆学、历史地理学、历史文献学、专门史、中国古代史、中国近现代史、世界史","具有高中及以上历史教师资格证书",null,"历史","高中","高中历史","市直属"]
[97,"黔东南振华民族高级中学","专业技术岗位","辅助高中物理教学工作",4,404,"本科及以上学历、学位",null,null,"物理学类、材料物理、工程物理","学科教学（物理）、理论物理、粒子物理与原子核物理、原子与分子物理、等离子体物理、凝聚态物理、声学、光学、无线电物理","具有高中及以上物理教师资格证书",null,"物理","高中","高中物理","市直属"]
[98,"黔东南振华民族高级中学","专业技术岗位","辅助高中化学教学工作",2,405,"本科及以上学历、学位",null,null,"化学类、化学、应用化学、化学生物学、分子科学与工程、化学教育","无机化学、分析化学、有机化学、物理化学、高分子化学与物理、学科教学（化学）、化学工程、化学工艺、生物化工、应用化学、工业催化","具有高中及以上化学教师资格证书",null,"化学","高中","高中化学","市直属"]
[99,"黔东南振华民族高级中学","专业技术岗位","辅助高中体育教学工作",1,406,"本科及以上学历、学位",null,null,"体育学类、体育教育、运动训练、社会体育指导与管理、武术与民族传统体育、运动人体科学、运动康复、休闲体育、体育卫生教育、体育现代教育技术","学科教学（体育）、体育教学、运动训练、竞赛组织、社会体育指导、体育教育训练学、民族传统体育学、体育人文社会学、运动人体科学","具有高中及以上体育（或体育与健康）教师资格证书",null,"体育","高中","高中体育","市直属"]
[100,"凯里市老年大学","专业技术岗位","辅助老年大学音乐与舞蹈教学工作",1,501,"本科及以上学历、学位",null,null,"音乐与舞蹈学类、音乐表演、音乐学、舞蹈表演、舞蹈学、舞蹈编导、","学科教学（音乐）、音乐、音乐学、音乐与舞蹈学、舞蹈、舞蹈学","具有高中及以上音乐教师资格证书",null,"音乐与舞蹈","老年大学","老年大学音乐与舞蹈","市直属"]
["合计",{"$nulls":3},{"$f":"SUM(E5:E104)","v":195}]